[Event "Festival Groningen-A 2024"]
[Site "Groningen"]
[Date "2024.12.21"]
[Round "1.1"]
[White "Narayanan S L"]
[Black "Madularea, David"]
[Result "1-0"]
[ECO "E71"]
[WhiteElo "2647"]
[BlackElo "2245"]
[Annotator "TA"]
[PlyCount "53"]
[EventDate "2024.12.21"]
[EventType "swiss"]
[EventCountry "NED"]
[SourceTitle "playchess.com"]
[Source "ChessBase"]
[SourceQuality "1"]
[TimeControl "40/5400+30:1800+30"]

{[%evp 9,53,34,54,29,36,38,53,43,69,53,70,70,85,81,84,75,96,37,26,28,33,28,27,0,77,40,41,14,167,150,156,174,168,175,259,153,254,243,436,436,591,575,831,835,796,781]} 1. d4 {[%emt 0:00:04][%cal Bd2d4,Bd4d5][%mdl 32]} Nf6 {[%emt 0:00:08]} 2. c4 {[%emt 0:00:13]} g6 {[%emt 0:00:14]} 3. Nc3 {[%emt 0:00:17]} Bg7 {[%emt 0:00:08]} 4. e4 {[%emt 0:00:06]} d6 {[%emt 0:00:05]} 5. h3 {[%emt 0:00:15]} e5 {[%emt 0:00:09]} 6. d5 {[%emt 0:00:38]} Nbd7 {[%emt 0:00:07]} 7. Be3 {[%emt 0:00:23]} Nc5 {[%emt 0:03:08]} 8. Qc2 {[%emt 0:00:19]} a5 {[%emt 0:00:11]} 9. O-O-O {[%emt 0:05:26]} b6 {[%emt 0:03:41]} 10. g4 {[%emt 0:02:52][%cal Bg2g4,Bg4g5][%mdl 32]} h5 {[%emt 0:03:55]} 11. g5 {[%emt 0:00:27]} Nh7 {[%emt 0:00:08]} 12. Nf3 {[%emt 0:03:13]} f6 {[%emt 0:02:31] [#]} 13. Rg1 {[%emt 0:00:52]} (13. gxf6 $1 $16 Bxf6 (13... Qxf6 14. Be2 $16) 14. Be2) 13... fxg5 $14 {[%emt 0:06:21]} 14. Nxg5 {[%emt 0:00:29]} Nxg5 {[%emt 0:00:12]} 15. Bxg5 {[%emt 0:04:24]} Qd7 {[%emt 0:02:14]} 16. h4 {[%emt 0:19:39]} O-O {[%emt 0:11:43]} (16... Qf7 $11) 17. Be3 {[%emt 0:04:52]} Kh7 {[%emt 0:03:37]} 18. Be2 {[%emt 0:02:10] With the idea Rg2.} Bf6 $2 {[%emt 0:09:32]} (18... Bh6 $11 {and Black stays safe.}) 19. f4 $18 {[%emt 0:03:39][%cal Of4f5] Black must now prevent f5!.} Qh3 {[%emt 0:08:11]} 20. Bxc5 {[%emt 0:04:54]} bxc5 {[%emt 0:00:04]} 21. f5 $1 {[%emt 0:00:55]} gxf5 {[%emt 0:01:31]} (21... Qe3+ 22. Kb1 gxf5) 22. Bxh5 {[%emt 0:02:41]} f4 {[%emt 0:01:20] [#]} (22... Kh8 $16) 23. Rd3 $1 {[%emt 0:02:17][%cal Bd1d3,Bd3f3,Bf3f6,Bf6f8][%mdl 32]} f3 $2 {[%emt 0:07:50]} (23... Qxh4 {keeps fighting.} 24. Qd1 Bg7) 24. Rxf3 {[%emt 0:03:34]} Qxh4 {[%emt 0:00:43] [#]} 25. Qg2 $1 {[%emt 0:00:55]} Qxh5 {[%emt 0:03:02] [#]} (25... Qg5+ 26. Qxg5) 26. Rxf6 $1 {[%emt 0:00:10][%mdl 512]} Bg4 {[%emt 0:00:17]} 27. Rxf8 {[%emt 0:00:17]} (27. Qxg4 $2 {loses.} Qxg4 28. Rxg4 Rxf6 $19) 1-0

[Event "Festival Groningen-A 2024"]
[Site "Groningen"]
[Date "2024.12.21"]
[Round "1.2"]
[White "Mostertman, Milan"]
[Black "Kazakouski, Valery"]
[Result "1/2-1/2"]
[ECO "B90"]
[WhiteElo "2244"]
[BlackElo "2567"]
[Annotator "TA"]
[PlyCount "104"]
[EventDate "2024.12.21"]
[EventType "swiss"]
[EventCountry "NED"]
[SourceTitle "playchess.com"]
[Source "ChessBase"]
[SourceQuality "1"]
[TimeControl "40/5400+30:1800+30"]

{[%evp 16,104,12,5,45,10,15,10,6,0,0,0,0,0,11,0,11,0,13,25,18,15,21,0,24,29,27,17,13,16,15,9,21,30,29,0,0,0,0,-46,-45,-43,-54,-48,0,0,0,0,0,-4,40,72,52,50,104,0,0,0,0,0,0,0,0,0,0,0,0,0,0,0,0,0,8,8,8,8,8,0,0,0,0,-8,-8,-8,-8,-8,8,-8,-8,-8,-8]} 1. e4 {[%emt 0:00:04]} c5 {[%emt 0:00:34]} 2. Nf3 {[%emt 0:00:08]} d6 {[%emt 0:00:39]} 3. d4 {[%emt 0:00:14]} cxd4 {[%emt 0:00:07]} 4. Nxd4 {[%emt 0:00:02]} Nf6 {[%emt 0:00:12]} 5. Nc3 {[%emt 0:00:07]} a6 {[%emt 0:00:27]} 6. Be3 {[%emt 0:00:30]} e5 {[%emt 0:00:10]} 7. Nf3 {[%emt 0:00:06]} Be7 {[%emt 0:01:38]} 8. Bc4 {[%emt 0:00:16]} O-O {[%emt 0:01:36]} 9. O-O {[%emt 0:00:06]} h6 {[%emt 0:03:33]} 10. Nd5 {[%emt 0:06:34]} Nxd5 {[%emt 0:05:08]} 11. Bxd5 {[%emt 0:00:37]} Nd7 {[%emt 0:00:11]} 12. c4 {[%emt 0:12:04]} Nf6 {[%emt 0:02:53]} 13. b3 {[%emt 0:04:49]} Qc7 {[%emt 0:06:46]} 14. Rc1 {[%emt 0:11:53]} Bd7 {[%emt 0:06:01]} 15. h3 {[%emt 0:09:45]} Rac8 {[%emt 0:02:15]} 16. a4 {[%emt 0:04:46]} Qb8 {[%emt 0:01:36]} 17. a5 {[%emt 0:12:00]} Nxd5 {[%emt 0:07:05]} 18. exd5 {[%emt 0:00:43]} f5 {[%emt 0:02:24]} 19. Bb6 {[%emt 0:00:11]} e4 {[%emt 0:06:16]} 20. Nd4 {[%emt 0:03:34]} Bg5 {[%emt 0:00:28]} 21. Rc3 {[%emt 0:01:17]} Rce8 {[%emt 0:07:40]} 22. f4 {[%emt 0:00:24]} exf3 {[%emt 0:00:14]} 23. Rcxf3 {[%emt 0:00:44]} (23. Qxf3 Re4 $11) 23... Qc8 {[%emt 0:00:57]} 24. Qd3 {[%emt 0:02:21]} Re5 {[%emt 0:00:30]} 25. Ne2 {[%emt 0:06:39]} Qe8 {[%emt 0:02:29]} 26. Nc3 {[%emt 0:00:04]} f4 {[%emt 0:19:32]} 27. Bc7 {[%emt 0:03:13]} (27. Qd2 $11) 27... Bf5 $15 {[%emt 0:05:52]} 28. Qd4 {[%emt 0:00:03]} Qd7 {[%emt 0:00:44]} 29. Qb6 {[%emt 0:00:18][%csl LRb7,LRd6]} Be7 {[%emt 0:09:58]} (29... Rf6 $15 {deserves consideration.} 30. c5 Rg6 (30... dxc5 31. Qxc5 $11)) 30. c5 $1 $11 {[%emt 0:04:15]} (30. Qxb7 Rc8 31. Rxf4 Bd3 $19 (31... Rxc7 32. Qxa6 Bxh3 33. Nb5 $17)) 30... g5 {[%emt 0:00:12]} 31. b4 {[%emt 0:09:03]} Rc8 {[%emt 0:04:26]} 32. cxd6 {[%emt 0:00:38][%cal Og2g4] [#] g4! would now be deadly.} Bf6 {[%emt 0:00:43]} (32... Bf8 $5) 33. Qxb7 {[%emt 0:02:35]} Rce8 {[%emt 0:00:02][%cal Bc8e8,Be8e3,Be3g3][%mdl 32]} 34. Qxa6 {[%emt 0:01:19] Bb6 is the strong threat.} Re3 $1 {[%emt 0:00:10] [#]} 35. Rxe3 {[%emt 0:04:50]} (35. Nd1 $1 $16 {[%cal Rd1e3]} Rxf3 (35... Bd3 $2 36. Qc6 $18) 36. Rxf3) 35... Rxe3 {[%emt 0:00:02] The position is equal.} 36. Nd1 {[%emt 0:00:02]} Rg3 {[%emt 0:01:30]} 37. Qc6 {[%emt 0:01:37] Hoping for Qxd7.} Bd4+ {[%emt 0:01:48] This pair of bishops is nice.} 38. Kh1 $1 {[%emt 0:00:59]} Qxc6 {[%emt 0:01:40]} 39. dxc6 {[%emt 0:00:04]} Be4 {[%emt 0:00:38][%csl LRc6,LRg2,LRh3] Prevents Rf3} 40. Rf3 $1 {[%emt 0:01:02]} Rxf3 {[%emt 0:00:52]} (40... Bxf3 $2 {is the wrong capture.} 41. gxf3 Kf7 42. d7 Rxh3+ 43. Kg2 Rg3+ 44. Kh2 $18) 41. gxf3 {[%emt 0:03:20]} Bxf3+ {[%emt 0:00:07][%mdl 4096] Endgame. KBB-KBN} 42. Kh2 {[%emt 0:00:05]} Bxc6 {[%emt 0:00:20]} 43. Bb6 {[%emt 0:22:33]} Be5 {[%emt 0:07:14]} 44. Bc5 {[%emt 0:00:07]} Kf7 {[%emt 0:00:07]} 45. Nf2 {[%emt 0:00:41]} Ke6 {[%emt 0:00:48]} 46. a6 {[%emt 0:00:07]} Bxd6 {[%emt 0:05:55]} 47. Bxd6 {[%emt 0:02:11]} Kxd6 {[%emt 0:00:08] KB-KN} 48. Ng4 {[%emt 0:00:02]} h5 {[%emt 0:01:14]} 49. Nf6 {[%emt 0:00:04]} Ke6 {[%emt 0:01:22]} 50. Nxh5 {[%emt 0:01:48]} Kf5 {[%emt 0:02:38] ( -> ...Kg6)} (50... Kf7 $5 51. Ng3 fxg3+ 52. Kxg3 Kg6 $11) 51. Ng3+ {[%emt 0:02:41]} fxg3+ {[%emt 0:00:34]} 52. Kxg3 {[%emt 0:00:02]} Bb5 {[%emt 0:00:31] Weighted Error Value: White=0.08 (flawless) /Black=0.06 (flawless) .  Mistake:       	White=2     	Black=1      Inaccurate:     	White=2     	Black=1      OK:         	White=11    	Black=22     Best:        	White=1     	Black=3      Strong:       	White=3     	Black=1} 1/2-1/2

[Event "Festival Groningen-A 2024"]
[Site "Groningen"]
[Date "2024.12.21"]
[Round "1.3"]
[White "Schoppen, Casper"]
[Black "Wempe, Joost"]
[Result "1/2-1/2"]
[ECO "B30"]
[WhiteElo "2539"]
[BlackElo "2233"]
[Annotator "TA"]
[PlyCount "61"]
[EventDate "2024.12.21"]
[EventType "swiss"]
[EventCountry "NED"]
[SourceTitle "playchess.com"]
[Source "ChessBase"]
[SourceQuality "1"]
[TimeControl "40/5400+30:1800+30"]

{[%evp 9,61,27,30,33,36,25,27,19,25,15,20,22,13,10,29,16,24,3,18,10,10,6,25,21,12,8,37,0,0,0,0,0,0,-26,-18,-33,-33,-31,-18,-51,-52,-44,-43,-60,-60,-54,-41,-53,-42,-54,0,-54,0,-48]} 1. e4 {[%emt 0:00:11]} c5 {[%emt 0:00:10]} 2. Nf3 {[%emt 0:00:05]} Nc6 {[%emt 0:00:06]} 3. Bb5 {[%emt 0:00:13]} Nf6 {[%emt 0:00:09]} 4. Bxc6 {[%emt 0:00:34]} dxc6 {[%emt 0:00:08]} 5. d3 {[%emt 0:00:11]} Bg4 {[%emt 0:00:09][%cal Oc5c4]} 6. Nbd2 {[%emt 0:00:17]} Qc7 {[%emt 0:03:03]} 7. h3 {[%emt 0:00:30]} Bh5 {[%emt 0:00:09]} 8. Qe2 {[%emt 0:00:21]} Nd7 {[%emt 0:04:54]} 9. e5 {[%emt 0:03:53]} e6 {[%emt 0:08:57]} 10. b3 {[%emt 0:02:33]} Be7 {[%emt 0:02:17]} 11. Bb2 {[%emt 0:03:41]} O-O-O {[%emt 0:09:16]} 12. O-O-O {[%emt 0:02:39]} Nb6 {[%emt 0:10:13]} 13. c4 {[%emt 0:02:48]} Rhe8 {[%emt 0:08:05]} 14. Qe3 {[%emt 0:09:18]} Nd7 {[%emt 0:08:36]} 15. Rhe1 {[%emt 0:01:42]} (15. g4 $5 Bg6 $8 16. Rhg1 $14) 15... b6 {[%emt 0:08:36]} 16. g4 {[%emt 0:08:17]} Bg6 {[%emt 0:00:04]} 17. Ne4 {[%emt 0:00:09]} f6 {[%emt 0:08:35]} 18. Ng3 {[%emt 0:02:43]} Nxe5 {[%emt 0:06:42]} 19. Nxe5 {[%emt 0:01:32]} fxe5 {[%emt 0:00:05]} 20. Bxe5 {[%emt 0:00:52]} Bd6 {[%emt 0:00:16]} 21. h4 {[%emt 0:09:56]} Bxe5 {[%emt 0:04:20]} 22. Qxe5 {[%emt 0:00:14]} Qxe5 {[%emt 0:04:13]} (22... Bxd3 $6 23. Qxc7+ Kxc7 24. Nh5 $11) 23. Rxe5 {[%emt 0:00:06]} Rd4 {[%emt 0:00:22]} ({Of course not} 23... Bxd3 24. Nh5 Rf8 25. Re3 $11) 24. Rg5 {[%emt 0:22:50]} Re7 {[%emt 0:01:12][%cal Oe7f7]} 25. Ne2 {[%emt 0:02:23]} Rxd3 {[%emt 0:00:40]} 26. Rxd3 {[%emt 0:00:55]} ({But not} 26. Rxg6 $2 Rxd1+ 27. Kxd1 Rd7+ (27... hxg6 $2 28. Ng3 $19) 28. Ke1 hxg6 $19) 26... Bxd3 $15 {[%emt 0:00:05] KRB-KRN. Black is a pawn up.} 27. Nf4 {[%emt 0:00:06]} Be4 {[%emt 0:01:23]} 28. Nh5 {[%emt 0:01:44]} Bg6 {[%emt 0:02:47]} 29. Nf4 {[%emt 0:08:00]} Be4 {[%emt 0:00:11]} 30. Nh5 $1 {[%emt 0:04:26]} Bg6 {[%emt 0:00:07]} 31. Nf4 {[%emt 0:00:51]} 1/2-1/2

[Event "Festival Groningen-A 2024"]
[Site "Groningen"]
[Date "2024.12.21"]
[Round "1.4"]
[White "Bakija, Alan"]
[Black "Beerdsen, Thomas"]
[Result "0-1"]
[ECO "D10"]
[WhiteElo "2233"]
[BlackElo "2502"]
[Annotator "TA"]
[PlyCount "134"]
[EventDate "2024.12.21"]
[EventType "swiss"]
[EventCountry "NED"]
[SourceTitle "playchess.com"]
[Source "ChessBase"]
[SourceQuality "1"]
[TimeControl "40/5400+30:1800+30"]

{[%evp 13,134,19,27,17,16,15,20,16,23,15,30,33,23,16,28,-2,0,-11,0,-12,-12,-16,-14,-11,0,0,10,0,10,16,4,0,0,0,0,0,0,-8,-8,-8,-8,-8,-12,-12,-8,-84,-84,-85,-88,-121,-112,-116,-58,-111,-111,-118,-76,-82,-78,-133,-113,-126,-126,-2157,-2041,-2189,-2163,-29972,-29973,-29972,-29975,-29974,-29974,-29976,-29975,-29975,-29976,-29976,-29977,-29977,-29978,-29978,-29979,-29981,-29981,-29981,-29981,-29981,-29982,-29982,-29983,-29983,-29984,-29984,-29985,-29985,-29986,-29986,-29987,-29987,-29988,-29988,-29987,-29988,-29989,-29989,-29990,-29990,-29989,-29989,-29989,-29990,-29991,-29991,-29992,-29992,-29993,-29993,-29994,-29996,-29997,-29997,-29998]} 1. d4 {[%emt 0:00:06]} d5 {[%emt 0:01:34]} 2. c4 {[%emt 0:00:07]} c6 {[%emt 0:00:19]} 3. cxd5 {[%emt 0:00:07]} cxd5 {[%emt 0:00:05]} 4. Bf4 {[%emt 0:00:12]} Nc6 {[%emt 0:00:10]} 5. e3 {[%emt 0:00:11]} Nf6 {[%emt 0:01:37]} 6. Nc3 {[%emt 0:00:10]} a6 {[%emt 0:01:29]} 7. Bd3 {[%emt 0:00:05]} e6 {[%emt 0:02:27]} 8. h3 {[%emt 0:05:29]} Bd6 {[%emt 0:00:16]} 9. Bxd6 {[%emt 0:00:14]} Qxd6 {[%emt 0:00:06]} 10. Nf3 {[%emt 0:00:04]} O-O {[%emt 0:00:41]} 11. O-O {[%emt 0:00:04]} b5 {[%emt 0:00:49]} 12. Qe2 {[%emt 0:04:15]} Bb7 {[%emt 0:02:54]} 13. Rfd1 {[%emt 0:14:09]} Rac8 {[%emt 0:01:32]} 14. e4 {[%emt 0:06:11]} dxe4 {[%emt 0:00:23]} 15. Nxe4 {[%emt 0:00:04]} Qe7 {[%emt 0:06:14]} 16. a4 {[%emt 0:11:00]} Nb4 {[%emt 0:15:03]} 17. Nc5 {[%emt 0:00:23]} Bxf3 {[%emt 0:01:46]} 18. Qxf3 {[%emt 0:00:42]} Rfd8 {[%emt 0:01:28][%cal Bf8d8,Bd8d5,Bd5c5][%mdl 32]} 19. axb5 {[%emt 0:26:25]} axb5 {[%emt 0:00:51]} 20. Bxb5 {[%emt 0:07:55]} Nc2 {[%emt 0:04:20][%csl LRa1,LRd4] A dynamic duo of knights.} 21. Ra4 {[%emt 0:00:36] Ba6 poses a challenge} Rd5 {[%emt 0:09:31]} 22. Qc3 {[%emt 0:10:48]} Nxd4 $1 {[%emt 0:02:36]} 23. Rdxd4 {[%emt 0:03:31]} Rdxc5 {[%emt 0:01:43]} 24. Rdc4 {[%emt 0:01:01] Black must now prevent Rxc5.} g6 {[%emt 0:01:12]} 25. Qa3 {[%emt 0:04:47]} Qd6 {[%emt 0:03:08]} 26. Ra8 $132 {[%emt 0:02:35][%mdl 2048] White puts up resistance} (26. Rxc5 {simplifies} Rxc5 27. Bf1 Kg7 28. Rc4) 26... Rxa8 {[%emt 0:00:07]} 27. Qxa8+ {[%emt 0:00:17]} Kg7 {[%emt 0:00:05]} 28. Rxc5 {[%emt 0:00:19]} Qxc5 $11 {[%emt 0:00:04][%mdl 4096] Endgame KQB-KQN} 29. Qc6 {[%emt 0:00:23]} (29. Qb7 $11 {remains equal.}) 29... Qb4 $17 {[%emt 0:00:09]} 30. Be2 {[%emt 0:02:37]} Qxb2 {[%emt 0:00:21]} 31. Bf3 {[%emt 0:00:04]} h5 {[%emt 0:03:13]} 32. Qc5 {[%emt 0:00:46]} e5 {[%emt 0:00:38]} (32... h4 $17 33. Qc4 Qa1+ 34. Kh2 Qe5+ 35. Kg1 Qa1+) 33. Qe3 {[%emt 0:00:17] [#]} ({White should try} 33. g3 $1 $15) 33... e4 $1 {[%emt 0:01:25][%mdl 512]} 34. Be2 {[%emt 0:00:34]} Qa1+ {[%emt 0:00:56]} 35. Bf1 {[%emt 0:00:13]} Qe5 {[%emt 0:00:18]} 36. f3 {[%emt 0:01:04]} (36. Bc4 $142) 36... Qg3 {[%emt 0:01:56]} 37. Qf2 {[%emt 0:00:03]} h4 {[%emt 0:00:10] ...exf3 is the strong threat. Black is more active.} 38. Qxg3 $4 {[%emt 0:00:53][%mdl 8192]} (38. fxe4 $17 Qxf2+ (38... Nxe4 39. Qd4+ Nf6 40. Kh1 $17) 39. Kxf2) 38... hxg3 $19 {[%emt 0:00:06]} 39. fxe4 {[%emt 0:00:15]} Nxe4 $17 {[%emt 0:00:06] ( -> ...Nd2). KB-KN. Black is a pawn up.} 40. Bc4 {[%emt 0:01:00]} Nd2 {[%emt 0:00:21]} 41. Bd5 {[%emt 0:06:21]} g5 {[%emt 0:02:15]} 42. Bc6 {[%emt 0:02:26]} f6 {[%emt 0:00:16]} 43. Bd5 {[%emt 0:00:10]} Kf8 {[%emt 0:00:06]} 44. Bc6 {[%emt 0:00:25]} Ke7 {[%emt 0:00:04]} 45. Bd5 {[%emt 0:00:09]} Kd6 {[%emt 0:00:04]} 46. Bf7 {[%emt 0:04:21]} Ke5 {[%emt 0:00:06]} 47. Bg6 {[%emt 0:02:03]} Kd4 {[%emt 0:00:12]} 48. Bf5 {[%emt 0:02:21]} Ke3 {[%emt 0:00:06]} 49. Bg4 {[%emt 0:00:33]} Ne4 {[%emt 0:00:22]} 50. Bf5 {[%emt 0:00:18]} Nc3 {[%emt 0:00:07]} 51. Bg4 {[%emt 0:01:22]} Kd2 {[%emt 0:00:06]} 52. Kf1 {[%emt 0:01:17]} Nd1 {[%emt 0:00:14]} 53. Bd7 {[%emt 0:00:11]} Ne3+ {[%emt 0:00:05]} 54. Kg1 {[%emt 0:00:04]} Ke1 {[%emt 0:00:05]} 55. Bc8 {[%emt 0:03:50]} Nc2 {[%emt 0:00:05]} 56. Bd7 {[%emt 0:01:51]} Nd4 {[%emt 0:00:16]} 57. Bc8 {[%emt 0:00:20]} Ne2+ {[%emt 0:00:05]} 58. Kh1 {[%emt 0:00:04]} Kf2 {[%emt 0:00:07]} 59. Bf5 {[%emt 0:00:32]} Nf4 {[%emt 0:00:22]} 60. Be4 {[%emt 0:00:09]} Kf1 {[%emt 0:00:17]} 61. Bc6 {[%emt 0:01:09]} Ng6 {[%emt 0:00:07]} 62. Bd5 {[%emt 0:00:36]} Nh4 {[%emt 0:00:07]} 63. Bc6 {[%emt 0:00:06]} f5 {[%emt 0:00:28]} 64. Be4 {[%emt 0:03:20]} f4 {[%emt 0:00:17]} 65. Bd3+ {[%emt 0:00:06]} Kf2 {[%emt 0:00:05]} 66. Bf1 {[%emt 0:00:18]} f3 {[%emt 0:00:11]} 67. gxf3 {[%emt 0:00:16]} Kxf1 {[%emt 0:00:05]} 0-1

[Event "Festival Groningen-A 2024"]
[Site "Groningen"]
[Date "2024.12.21"]
[Round "1.5"]
[White "Poetsch, Hagen"]
[Black "Vijayakumar, Rishi"]
[Result "1/2-1/2"]
[ECO "A04"]
[WhiteElo "2491"]
[BlackElo "2204"]
[Annotator "TA"]
[PlyCount "45"]
[EventDate "2024.12.21"]
[EventType "swiss"]
[EventCountry "NED"]
[SourceTitle "playchess.com"]
[Source "ChessBase"]
[SourceQuality "1"]
[TimeControl "40/5400+30:1800+30"]

{[%evp 9,45,12,11,11,9,0,0,0,0,0,0,-14,-6,-6,-2,0,0,-7,0,0,-5,-8,2,-33,-15,-17,-23,-12,-13,-14,-12,-14,-12,-10,-9,-12,-10,-66]} 1. Nf3 {[%emt 0:00:03]} Nf6 {[%emt 0:02:19]} 2. g3 {[%emt 0:00:05]} c5 {[%emt 0:00:10]} 3. Bg2 {[%emt 0:00:05]} Nc6 {[%emt 0:00:13]} 4. O-O {[%emt 0:00:18]} e5 {[%emt 0:00:30]} 5. e4 {[%emt 0:00:07]} d6 {[%emt 0:00:48]} 6. Re1 {[%emt 0:00:43]} g6 {[%emt 0:01:27]} 7. c3 {[%emt 0:00:21][%cal Bc2c3,Bc3d4,Bd4d5][%mdl 32]} Bg7 {[%emt 0:01:34]} 8. d4 {[%emt 0:05:28]} cxd4 {[%emt 0:01:18]} 9. cxd4 {[%emt 0:00:06]} Bg4 {[%emt 0:05:38]} 10. d5 {[%emt 0:00:39] [#]} Nd4 {[%emt 0:01:23]} 11. Be3 {[%emt 0:03:16]} O-O {[%emt 0:00:27]} 12. Nbd2 {[%emt 0:06:07][%cal Oh2h3]} Rc8 {[%emt 0:12:54]} 13. Bxd4 {[%emt 0:05:20]} exd4 {[%emt 0:00:03]} 14. h3 {[%emt 0:06:32]} Bxf3 {[%emt 0:01:00]} 15. Nxf3 {[%emt 0:00:08]} Nd7 {[%emt 0:06:05]} 16. Nxd4 {[%emt 0:06:37]} Qb6 {[%emt 0:03:27][%csl LRb2,LRd4]} 17. Nb3 {[%emt 0:02:25]} Bxb2 {[%emt 0:06:29]} 18. Rb1 {[%emt 0:00:05] White is weak on the dark squares} Bf6 {[%emt 0:09:01] The position is equal.} 19. Nd2 {[%emt 0:06:44]} Qa5 {[%emt 0:08:18]} 20. Rxb7 {[%emt 0:18:32]} Nc5 {[%emt 0:00:48]} 21. Nb3 {[%emt 0:00:18]} Qxa2 {[%emt 0:03:05]} 22. Nxc5 {[%emt 0:00:14]} Rxc5 {[%emt 0:00:27]} 23. Qb1 {[%emt 0:02:29] Weighted Error Value: White=0.05 (flawless) /Black=0.02 (flawless) .  Mistake:       	White=1     	---        Inaccurate:     	White=1     	---        OK:         	White=9     	Black=10     Best:        	---       	Black=1} (23. Re2 $11 Qa6 24. Rb1) 1/2-1/2

[Event "Festival Groningen-A 2024"]
[Site "Groningen"]
[Date "2024.12.21"]
[Round "1.6"]
[White "Sharma, Dinesh K."]
[Black "Mitusov, Semen"]
[Result "1/2-1/2"]
[ECO "B90"]
[WhiteElo "2200"]
[BlackElo "2465"]
[Annotator "TA"]
[PlyCount "78"]
[EventDate "2024.12.21"]
[EventType "swiss"]
[EventCountry "NED"]
[SourceTitle "playchess.com"]
[Source "ChessBase"]
[SourceQuality "1"]
[TimeControl "40/5400+30:1800+30"]

{[%evp 11,78,10,16,0,13,-27,-18,-12,8,22,20,10,12,0,40,40,100,71,74,92,89,0,0,0,0,0,0,0,0,-31,-2,-9,-12,-19,0,-21,0,0,0,0,108,94,129,116,117,124,114,86,126,116,130,102,268,187,176,176,173,125,100,88,83,82,173,120,113,118,108,62,66]} 1. e4 {[%emt 0:00:13]} c5 {[%emt 0:00:26]} 2. Nf3 {[%emt 0:00:39]} d6 {[%emt 0:00:05]} 3. d4 {[%emt 0:00:16]} cxd4 {[%emt 0:00:05]} 4. Nxd4 {[%emt 0:00:06]} Nf6 {[%emt 0:00:06]} 5. Nc3 {[%emt 0:00:11]} a6 {[%emt 0:00:06]} 6. h3 {[%emt 0:01:01]} e5 {[%emt 0:01:29]} 7. Nf3 {[%emt 0:00:35]} Be7 {[%emt 0:03:31]} 8. g4 {[%emt 0:00:34]} h6 {[%emt 0:03:10]} 9. Rg1 {[%emt 0:01:17]} Qc7 {[%emt 0:15:20]} 10. g5 {[%emt 0:05:40]} hxg5 {[%emt 0:00:33]} 11. Nxg5 {[%emt 0:00:05]} Nbd7 {[%emt 0:02:39]} 12. Be3 {[%emt 0:07:09]} Rf8 {[%emt 0:06:21]} 13. a4 {[%emt 0:05:55]} b6 {[%emt 0:02:55]} (13... g6 $14) 14. Bd3 {[%emt 0:26:35]} Bb7 {[%emt 0:15:43]} 15. Qe2 {[%emt 0:04:03]} Nc5 {[%emt 0:06:42] [#]} 16. Bxc5 {[%emt 0:02:41]} (16. Bc4 $1 $16) 16... Qxc5 $11 {[%emt 0:01:40]} 17. Bc4 {[%emt 0:00:51]} g6 {[%emt 0:04:22]} 18. Bb3 {[%emt 0:05:15]} Nh5 {[%emt 0:01:59]} 19. O-O-O {[%emt 0:03:07]} Nf4 {[%emt 0:01:02]} 20. Qe3 {[%emt 0:00:59]} Bxg5 {[%emt 0:11:37]} (20... Rc8 {with more complications.} 21. h4 b5 22. axb5 axb5 23. Rg4 Bc6) 21. Rxg5 {[%emt 0:01:30]} O-O-O {[%emt 0:00:12]} 22. Rg3 {[%emt 0:02:36]} f6 {[%emt 0:03:06]} 23. Qf3 {[%emt 0:05:49]} f5 {[%emt 0:01:44]} 24. Bd5 {[%emt 0:02:50]} Bxd5 {[%emt 0:05:25]} 25. Nxd5 {[%emt 0:02:51]} Nxd5 {[%emt 0:01:37]} (25... fxe4 $1 $11 26. Qxe4 Nxd5 27. Rxd5 Qxf2) 26. Rxd5 $16 {[%emt 0:01:11][%cal Bd1d5,Bd5e5,Be5e1][%mdl 32]} Qc4 {[%emt 0:00:08]} 27. Qd1 {[%emt 0:14:43]} (27. Rxg6 fxe4 28. Qg4+ Kb7 29. Rgxd6 (29. Rdxd6 Qf1+ 30. Qd1 Qxd1+ 31. Rxd1 Rxd1+ 32. Kxd1 Rxf2 $11) (29. Rg7+ Kb8 $11) 29... Rc8 30. Rd7+ (30. Rxe5 $2 Qxc2#) 30... Ka8 $11) 27... Qxa4 {[%emt 0:02:30]} (27... fxe4 $2 28. Rc3 $18 (28. Rxg6 $2 {loses.} e3 $19)) 28. Kb1 {[%emt 0:01:22] Prevents Qa1+.} Rf6 {[%emt 0:03:40]} 29. exf5 {[%emt 0:01:42]} gxf5 {[%emt 0:00:14]} 30. Rc3+ {[%emt 0:00:11]} Kb8 {[%emt 0:02:04]} 31. Rxe5 {[%emt 0:00:21] Re7 would now be deadly.} Rg8 $2 {[%emt 0:00:49]} (31... Rf7 $16 32. Qd3 Rg8 33. Qxd6+ Ka7 34. Rc7+ Rxc7 35. Qxc7+ Ka8) 32. Re1 {[%emt 0:01:11]} Rfg6 {[%emt 0:01:07]} 33. Qd5 {[%emt 0:01:20][%cal Oc3b3]} Qd7 {[%emt 0:00:12]} 34. Qd4 {[%emt 0:00:51]} (34. h4 $18) 34... Ka7 {[%emt 0:00:55]} 35. Rce3 {[%emt 0:01:02]} R8g7 {[%emt 0:02:05] Against Re7} 36. b3 {[%emt 0:00:10] White has more active pieces.} Rg1 {[%emt 0:00:38] [#]} (36... a5 $16) 37. Kb2 {[%emt 0:00:33]} (37. h4 $1 $18) 37... Rxe1 {[%emt 0:00:25]} 38. Rxe1 {[%emt 0:00:10][%cal Oe1e6]} Rh7 {[%emt 0:00:11]} 39. Re3 {[%emt 0:01:14]} (39. h4 $16) 39... Qg7 {[%emt 0:01:22]} 1/2-1/2